[Event "Liberia Championship 2023"]
[Site "Monrovia"]
[Date "2024.01.16"]
[Round "1.1"]
[White "Foday W. Kondoh"]
[Black "Anthony Waylea, Jr."]
[Result "1/2-1/2"]
[ECO "C45"]
[WhiteElo "1785"]
[BlackElo "1939"]
[Annotator "NA RC"]
[PlyCount "77"]
[EventDate "2024.01.16"]
[EventType "swiss"]
[EventCountry "LBR"]
[SourceTitle "playchess.com"]
[Source "ChessBase"]
[SourceQuality "1"]
[TimeControl "40/5400+30:1800+30"]

1. e4 {[%emt 0:00:11]} Nc6 {[%emt 0:00:11]} 2. Nf3 {[%emt 0:00:15]} e5 {[%emt 0:00:16]} 3. d4 {[%emt 0:00:19]} exd4 {[%emt 0:00:10]} 4. Nxd4 {[%emt 0:00:07]} Bc5 {[%emt 0:00:10]} 5. Nxc6 {[%emt 0:03:40]} Qf6 {[%emt 0:01:15]} 6. Qf3 {[%emt 0:00:52]} Qxc6 {[%emt 0:01:42]} 7. Nc3 {[%emt 0:00:42]} Nf6 {[%emt 0:00:58]} 8. Bg5 {[%emt 0:02:03]} Bd4 {[%emt 0:00:41]} 9. Bd2 {[%emt 0:19:01]} O-O {[%emt 0:08:12]} 10. Bd3 {[%emt 0:03:55]} Re8 {[%emt 0:01:19]} 11. O-O-O {[%emt 0:00:31]} Bxc3 {[%emt 0:01:55]} 12. Bxc3 {[%emt 0:00:18]} Nxe4 {[%emt 0:00:10]} 13. Rhe1 {[%emt 0:01:46]} d5 {[%emt 0:00:13]} 14. Bxe4 {[%emt 0:25:01]} dxe4 {[%emt 0:02:52]} 15. Rxe4 {[%emt 0:01:33]} Bd7 {[%emt 0:00:17]} 16. Qg3 {[%emt 0:01:45]} f6 {[%emt 0:05:09]} 17. Red4 {[%emt 0:03:00]} Bf5 {[%emt 0:04:01]} 18. Qf4 {[%emt 0:05:37]} Bg6 {[%emt 0:06:37]} 19. Rc4 {[%emt 0:03:12]} Qa6 {[%emt 0:00:05]} 20. Rxc7 {[%emt 0:06:57]} Rac8 {[%emt 0:06:37]} 21. Rxc8 {[%emt 0:01:41]} Rxc8 {[%emt 0:00:03]} 22. a3 {[%emt 0:03:56]} Qe6 {[%emt 0:01:27]} 23. Qd2 {[%emt 0:02:27]} Qf5 {[%emt 0:57:40]} 24. Qd5+ {[%emt 0:00:45]} Qxd5 {[%emt 0:00:00]} 25. Rxd5 {[%emt 0:00:06]} Be4 {[%emt 0:00:00]} 26. Ra5 {[%emt 0:00:06]} a6 {[%emt 0:00:00]} 27. f3 {[%emt 0:00:17]} Bc6 {[%emt 0:00:00]} 28. Rh5 {[%emt 0:02:44]} Re8 {[%emt 0:00:00]} 29. Kd2 {[%emt 0:00:25]} Bb5 {[%emt 0:00:00]} 30. Kd1 {[%emt 0:01:11]} Be2+ {[%emt 0:00:00]} 31. Kd2 {[%emt 0:00:51]} Bb5 {[%emt 0:00:00]} 32. Kd1 {[%emt 0:00:42]} Be2+ {[%emt 0:00:00]} 33. Kc1 {[%emt 0:00:53]} Bf1 {[%emt 0:00:00]} 34. g3 {[%emt 0:00:29]} Bg2 {[%emt 0:00:00]} 35. Rf5 {[%emt 0:01:23]} Re3 {[%emt 0:00:00]} 36. Kd2 {[%emt 0:01:21]} Rxf3 {[%emt 0:00:00]} 37. Rxf3 {[%emt 0:00:14]} Bxf3 {[%emt 0:00:00]} 38. Bd4 {[%emt 0:00:34]} Kf7 {[%emt 0:00:00]} 39. c4 {[%emt 0:00:37]} 1/2-1/2

[Event "Liberia Championship 2023"]
[Site "Monrovia"]
[Date "2024.01.16"]
[Round "1.2"]
[White "Bobby Ballah"]
[Black "Jacob, Jallah"]
[Result "0-1"]
[ECO "B17"]
[WhiteElo "1913"]
[BlackElo "1781"]
[Annotator "NA RC"]
[PlyCount "142"]
[EventDate "2024.01.16"]
[EventType "swiss"]
[EventCountry "LBR"]
[SourceTitle "playchess.com"]
[Source "ChessBase"]
[SourceQuality "1"]
[TimeControl "40/5400+30:1800+30"]

1. e4 {[%emt 0:00:08]} c6 {[%emt 0:00:24]} 2. Nc3 {[%emt 0:00:16]} d5 {[%emt 0:00:06]} 3. Nf3 {[%emt 0:00:07]} Bg4 {[%emt 0:00:25]} 4. h3 {[%emt 0:00:10]} Bxf3 {[%emt 0:03:58]} 5. Qxf3 {[%emt 0:00:11]} e6 {[%emt 0:00:57]} 6. d4 {[%emt 0:05:03]} dxe4 {[%emt 0:02:12]} 7. Nxe4 {[%emt 0:00:30]} Be7 {[%emt 0:06:04]} 8. c3 {[%emt 0:03:12]} Nf6 {[%emt 0:01:19]} 9. Bd3 {[%emt 0:01:06]} Nxe4 {[%emt 0:00:56]} 10. Qxe4 {[%emt 0:00:45]} Nd7 {[%emt 0:02:14]} 11. O-O {[%emt 0:03:34]} Nf6 {[%emt 0:00:06]} 12. Qf3 {[%emt 0:01:56]} h6 {[%emt 0:03:56]} 13. Bf4 {[%emt 0:02:26]} Qd5 {[%emt 0:08:18]} 14. Qe2 {[%emt 0:03:55]} Qh5 {[%emt 0:15:03]} 15. Qc2 {[%emt 0:07:14]} Nd5 {[%emt 0:05:00]} 16. Be2 {[%emt 0:02:22]} Qf5 {[%emt 0:00:35]} 17. Qxf5 {[%emt 0:00:13]} exf5 {[%emt 0:00:19]} 18. Bd2 {[%emt 0:00:32]} O-O-O {[%emt 0:02:52]} 19. Rfe1 {[%emt 0:01:16]} Bd6 {[%emt 0:00:51]} 20. g3 {[%emt 0:05:34]} Rde8 {[%emt 0:06:08]} 21. a3 {[%emt 0:02:10]} Kd7 {[%emt 0:02:27]} 22. c4 {[%emt 0:02:18]} Nf6 {[%emt 0:01:01]} 23. c5 {[%emt 0:03:27]} Bc7 {[%emt 0:01:24]} 24. Bc4 {[%emt 0:01:03]} Rxe1+ {[%emt 0:03:04]} 25. Rxe1 {[%emt 0:00:11]} Ne4 {[%emt 0:00:14]} 26. Be3 {[%emt 0:00:29]} Rf8 {[%emt 0:04:43]} 27. d5 {[%emt 0:00:48]} cxd5 {[%emt 0:13:48]} 28. Bxd5 {[%emt 0:00:32]} b6 {[%emt 0:03:42]} 29. cxb6 {[%emt 0:01:08]} axb6 {[%emt 0:00:06]} 30. Bxe4 {[%emt 0:02:54]} fxe4 {[%emt 0:00:05]} 31. Bd4 {[%emt 0:00:04]} f6 {[%emt 0:04:53]} 32. Rxe4 {[%emt 0:00:30]} Re8 {[%emt 0:00:15]} 33. Rxe8 {[%emt 0:01:05]} Kxe8 {[%emt 0:00:01]} 34. Kg2 {[%emt 0:00:52]} Kf7 {[%emt 0:10:04]} 35. Kf3 {[%emt 0:00:31]} Ke6 {[%emt 0:00:00]} 36. Ke4 {[%emt 0:00:30]} b5 {[%emt 0:00:00]} 37. b3 {[%emt 0:04:07]} g6 {[%emt 0:00:00]} 38. Kd3 {[%emt 0:07:13]} h5 {[%emt 0:00:00]} 39. a4 {[%emt 0:00:20]} bxa4 {[%emt 0:00:00]} 40. bxa4 {[%emt 0:00:00]} g5 {[%emt 0:00:00]} 41. Kc4 {[%emt 0:01:33]} f5 {[%emt 0:00:00]} 42. Kb5 {[%emt 0:01:16]} Kd5 {[%emt 0:01:57]} 43. Ba7 {[%emt 0:02:32]} Ke4 {[%emt 0:00:56]} 44. Be3 {[%emt 0:03:59]} Bxg3 {[%emt 0:05:41]} 45. Bb6 {[%emt 0:03:15]} Bb8 {[%emt 0:02:59]} 46. a5 {[%emt 0:01:29]} h4 {[%emt 0:01:31]} 47. a6 {[%emt 0:00:49]} g4 {[%emt 0:00:53]} 48. hxg4 {[%emt 0:01:18]} fxg4 {[%emt 0:01:15]} 49. Bd8 {[%emt 0:00:45]} g3 {[%emt 0:02:43]} 50. fxg3 {[%emt 0:02:13]} h3 {[%emt 0:00:38]} 51. Bc7 {[%emt 0:00:37]} h2 {[%emt 0:02:05]} 52. Bxb8 {[%emt 0:00:35]} h1=Q {[%emt 0:01:17]} 53. a7 {[%emt 0:00:39]} Kf5 {[%emt 0:01:13]} 54. Kb6 {[%emt 0:01:18]} Ke6 {[%emt 0:02:17]} 55. Kc5 {[%emt 0:05:19]} Qb7 {[%emt 0:00:54]} 56. Kd4 {[%emt 0:01:14]} Qc6 {[%emt 0:00:40]} 57. Ke3 {[%emt 0:01:36]} Kf5 {[%emt 0:00:49]} 58. Kd4 {[%emt 0:01:09]} Ke6 {[%emt 0:01:29]} 59. Ke3 {[%emt 0:01:52]} Qa4 {[%emt 0:00:46]} 60. Kf3 {[%emt 0:02:18]} Kf5 {[%emt 0:00:41]} 61. Ke3 {[%emt 0:00:42]} Qe4+ {[%emt 0:01:30]} 62. Kd2 {[%emt 0:00:51]} Kg4 {[%emt 0:01:07]} 63. Kc3 {[%emt 0:02:21]} Kf3 {[%emt 0:01:09]} 64. Kb3 {[%emt 0:01:03]} Ke2 {[%emt 0:10:30]} 65. Kc3 {[%emt 0:02:14]} Kf3 {[%emt 0:00:00]} 66. Kb3 {[%emt 0:01:08]} Qc6 {[%emt 0:00:00]} 67. Kb4 {[%emt 0:01:00]} Ke2 {[%emt 0:01:30]} 68. g4 {[%emt 0:38:43]} Kd3 {[%emt 0:00:00]} 69. g5 {[%emt 0:00:00]} Qb6+ {[%emt 0:00:00]} 70. Ka3 {[%emt 0:00:00]} Kc4 {[%emt 0:00:00]} 71. Ka2 {[%emt 0:00:00]} Kc3 {[%emt 0:00:00]} 0-1

[Event "Liberia Championship 2023"]
[Site "Monrovia"]
[Date "2024.01.16"]
[Round "1.3"]
[White "John Jallah"]
[Black "Barcon, Harmon"]
[Result "0-1"]
[ECO "C27"]
[WhiteElo "1761"]
[BlackElo "1902"]
[Annotator "NA RC"]
[PlyCount "64"]
[EventDate "2024.01.16"]
[EventType "swiss"]
[EventCountry "LBR"]
[SourceTitle "playchess.com"]
[Source "ChessBase"]
[SourceQuality "1"]
[TimeControl "40/5400+30:1800+30"]

1. e4 {[%emt 0:35:44]} e5 {[%emt 0:00:11]} 2. Bc4 {[%emt 0:00:08]} c6 {[%emt 0:00:12]} 3. Nc3 {[%emt 0:00:54]} Nf6 {[%emt 0:00:02]} 4. d3 {[%emt 0:01:57]} d5 {[%emt 0:00:13]} 5. exd5 {[%emt 0:00:23]} cxd5 {[%emt 0:00:01]} 6. Bb5+ {[%emt 0:00:12]} Nc6 {[%emt 0:00:38]} 7. h3 {[%emt 0:00:14]} h6 {[%emt 0:00:16]} 8. Nge2 {[%emt 0:00:11]} d4 {[%emt 0:03:53]} 9. Bxc6+ {[%emt 0:00:35]} bxc6 {[%emt 0:00:03]} 10. Nb1 {[%emt 0:00:14]} Bd6 {[%emt 0:00:23]} 11. O-O {[%emt 0:00:44]} O-O {[%emt 0:00:30]} 12. Ng3 {[%emt 0:00:17]} Nd5 {[%emt 0:00:40]} 13. Nd2 {[%emt 0:00:31]} f5 {[%emt 0:00:44]} 14. Nc4 {[%emt 0:00:13]} Bc7 {[%emt 0:00:26]} 15. Qh5 {[%emt 0:02:22]} Qf6 {[%emt 0:01:31]} 16. Bd2 {[%emt 0:01:44]} Bd7 {[%emt 0:01:26]} 17. Rae1 {[%emt 0:04:14]} Rae8 {[%emt 0:03:04]} 18. c3 {[%emt 0:03:27]} c5 {[%emt 0:02:57]} 19. Qd1 {[%emt 0:03:28]} Bc6 {[%emt 0:01:11]} 20. Qh5 {[%emt 0:05:03]} Kh7 {[%emt 0:02:17]} 21. Re2 {[%emt 0:00:55]} Nf4 {[%emt 0:00:19]} 22. Bxf4 {[%emt 0:05:40]} exf4 {[%emt 0:00:47]} 23. Rxe8 {[%emt 0:32:50]} Bxe8 {[%emt 0:01:06]} 24. Qf3 {[%emt 0:00:00]} fxg3 {[%emt 0:00:11]} 25. Qd5 {[%emt 0:00:00]} gxf2+ {[%emt 0:01:12]} 26. Rxf2 {[%emt 0:00:00]} dxc3 {[%emt 0:06:42]} 27. bxc3 {[%emt 0:00:00]} Bb6 {[%emt 0:05:43]} 28. Nd6 {[%emt 0:00:00]} Bg6 {[%emt 0:01:11]} 29. Ne4 {[%emt 0:00:00]} Qf7 {[%emt 0:01:07]} 30. Qd6 {[%emt 0:03:30]} Rd8 {[%emt 0:02:45]} 31. Qg3 {[%emt 0:00:00]} Qd5 {[%emt 0:01:35]} 32. Nd2 {[%emt 0:00:00]} Qxd3 {[%emt 0:01:07]} 0-1

[Event "Liberia Championship 2023"]
[Site "Monrovia"]
[Date "2024.01.16"]
[Round "1.4"]
[White "Thomas, Saah"]
[Black "Obediah Saah"]
[Result "0-1"]
[ECO "C57"]
[WhiteElo "1889"]
[BlackElo "1756"]
[Annotator "NA COMBH"]
[PlyCount "108"]
[EventDate "2024.01.16"]
[EventType "swiss"]
[EventCountry "LBR"]
[SourceTitle "playchess.com"]
[Source "ChessBase"]
[SourceQuality "1"]
[TimeControl "40/5400+30:1800+30"]

1. e4 {[%emt 0:00:04]} e5 {[%emt 0:01:36]} 2. Nf3 {[%emt 0:00:53]} Nc6 {[%emt 0:00:39]} 3. Bc4 {[%emt 0:00:12]} Nf6 {[%emt 0:00:37]} 4. Ng5 {[%emt 0:00:44]} Nxe4 {[%emt 0:00:54]} 5. Nxf7 {[%emt 0:01:44]} Qh4 {[%emt 0:01:49]} 6. g3 {[%emt 0:02:16]} Nxg3 {[%emt 0:01:06]} 7. fxg3 {[%emt 0:01:35]} Qxc4 {[%emt 0:00:29]} 8. Ng5 {[%emt 0:02:10]} Be7 {[%emt 0:09:11]} 9. d3 {[%emt 0:00:31]} Qb4+ {[%emt 0:03:37]} 10. c3 {[%emt 0:01:01]} Qd6 {[%emt 0:00:52]} 11. O-O {[%emt 0:00:58]} Qg6 {[%emt 0:01:41]} 12. h4 {[%emt 0:02:53]} Bxg5 {[%emt 0:00:57]} 13. hxg5 {[%emt 0:00:01]} Rf8 {[%emt 0:03:04]} 14. Rxf8+ {[%emt 0:01:49]} Kxf8 {[%emt 0:00:15]} 15. Qf3+ {[%emt 0:00:10]} Qf7 {[%emt 0:00:48]} 16. Qe4 {[%emt 0:00:02]} Kg8 {[%emt 0:01:22]} 17. Bd2 {[%emt 0:02:46]} d5 {[%emt 0:00:53]} 18. Qg2 {[%emt 0:01:25]} Bf5 {[%emt 0:02:50]} 19. Qf3 {[%emt 0:02:51]} e4 {[%emt 0:01:24]} 20. dxe4 {[%emt 0:00:14]} dxe4 {[%emt 0:00:35]} 21. Qe2 {[%emt 0:00:07]} Ne5 {[%emt 0:01:50]} 22. Na3 {[%emt 0:01:09]} Nf3+ {[%emt 0:01:37]} 23. Kg2 {[%emt 0:00:16]} Rd8 {[%emt 0:03:23]} 24. Bf4 {[%emt 0:00:17]} Bh3+ {[%emt 0:03:37]} 25. Kf2 {[%emt 0:01:10]} Rd2 {[%emt 0:00:22]} 26. Bxd2 {[%emt 0:00:27]} Nd4+ {[%emt 0:00:24]} 27. Bf4 {[%emt 0:00:36]} Nxe2 {[%emt 0:00:46]} 28. Kxe2 {[%emt 0:00:01]} Qh5+ {[%emt 0:00:37]} 29. Kd2 {[%emt 0:00:19]} Qf3 {[%emt 0:00:54]} 30. Re1 {[%emt 0:00:08]} Bf1 {[%emt 0:01:53]} 31. Nc2 {[%emt 0:01:31]} Qf2+ {[%emt 0:04:37]} 32. Kc1 {[%emt 0:01:37]} Bd3 {[%emt 0:00:32]} 33. Bd2 {[%emt 0:00:19]} Qxg3 {[%emt 0:01:18]} 34. Nb4 {[%emt 0:01:04]} Qd6 {[%emt 0:02:12]} 35. Nxd3 {[%emt 0:00:25]} exd3 {[%emt 0:00:48]} 36. b4 {[%emt 0:01:22]} Qd5 {[%emt 0:02:46]} 37. Kb2 {[%emt 0:00:49]} b6 {[%emt 0:00:22]} 38. Rg1 {[%emt 0:03:30]} Kf7 {[%emt 0:01:33]} 39. Rg4 {[%emt 0:01:46]} c5 {[%emt 0:01:20]} 40. b5 {[%emt 0:00:00]} Kg6 {[%emt 0:00:00]} 41. Rg1 {[%emt 0:06:58]} Qc4 {[%emt 0:03:00]} 42. Re1 {[%emt 0:02:17]} Qa4 {[%emt 0:01:28]} 43. Rc1 {[%emt 0:01:03]} Qxb5+ {[%emt 0:00:43]} 44. Ka1 {[%emt 0:00:35]} Qc4 {[%emt 0:00:59]} 45. Kb2 {[%emt 0:01:10]} b5 {[%emt 1:11:20]} 46. Kb1 {[%emt 0:01:20]} a5 {[%emt 0:00:00]} 47. Ka1 {[%emt 0:00:49]} Qg4 {[%emt 0:00:00]} 48. Re1 {[%emt 0:01:21]} Qg2 {[%emt 0:00:00]} 49. Be3 {[%emt 0:00:54]} d2 {[%emt 0:00:00]} 50. Rd1 {[%emt 0:00:42]} Qe2 {[%emt 0:00:00]} 51. Rxd2 {[%emt 0:00:31]} Qxe3 {[%emt 0:00:00]} 52. Rd6+ {[%emt 0:00:57]} Kxg5 {[%emt 0:00:00]} 53. Rd5+ {[%emt 0:00:34]} Kg4 {[%emt 0:00:00]} 54. Kb2 {[%emt 0:00:31]} h5 {[%emt 0:00:00]} 0-1

[Event "Liberia Championship 2023"]
[Site "Monrovia"]
[Date "2024.01.16"]
[Round "1.5"]
[White "Harold Evans"]
[Black "Joel O. Ebiekuta"]
[Result "0-1"]
[ECO "C30"]
[WhiteElo "1735"]
[BlackElo "1875"]
[Annotator "NA COMBH"]
[PlyCount "66"]
[EventDate "2024.01.16"]
[EventType "swiss"]
[EventCountry "LBR"]
[SourceTitle "playchess.com"]
[Source "ChessBase"]
[SourceQuality "1"]
[TimeControl "40/5400+30:1800+30"]

1. e4 {[%emt 0:01:15]} d6 {[%emt 0:40:05]} 2. f4 {[%emt 0:00:26]} e5 {[%emt 0:00:13]} 3. Qf3 {[%emt 0:01:21]} Nc6 {[%emt 0:00:05]} 4. Bb5 {[%emt 0:00:32]} Bd7 {[%emt 0:00:02]} 5. Ne2 {[%emt 0:00:38]} Nf6 {[%emt 0:00:20]} 6. Bxc6 {[%emt 0:02:22]} Bxc6 {[%emt 0:00:08]} 7. d3 {[%emt 0:00:28]} Qe7 {[%emt 0:00:11]} 8. O-O {[%emt 0:00:44]} O-O-O {[%emt 0:00:07]} 9. Nbc3 {[%emt 0:00:31]} d5 {[%emt 0:00:06]} 10. fxe5 {[%emt 0:02:11]} Qxe5 {[%emt 0:00:13]} 11. Bf4 {[%emt 0:09:58]} Qe6 {[%emt 0:03:07]} 12. exd5 {[%emt 0:05:30]} Nxd5 {[%emt 0:00:27]} 13. Qg3 {[%emt 0:00:30]} Nxf4 {[%emt 0:01:19]} 14. Nxf4 {[%emt 0:04:35]} Qd7 {[%emt 0:01:36]} 15. Nfe2 {[%emt 0:02:37]} Kb8 {[%emt 0:00:45]} 16. a4 {[%emt 0:00:17]} h5 {[%emt 0:00:37]} 17. Nb5 {[%emt 0:01:23]} Bc5+ {[%emt 0:01:34]} 18. d4 {[%emt 0:05:11]} Bb6 {[%emt 0:01:41]} 19. Qb3 {[%emt 0:16:55]} a6 {[%emt 0:00:31]} 20. Nbc3 {[%emt 0:06:32]} Bxd4+ {[%emt 0:00:57]} 21. Nxd4 {[%emt 0:03:40]} Qxd4+ {[%emt 0:00:24]} 22. Rf2 {[%emt 0:01:05]} h4 {[%emt 0:00:29]} 23. h3 {[%emt 0:00:18]} f5 {[%emt 0:01:24]} 24. Raf1 {[%emt 0:05:42]} g6 {[%emt 0:01:05]} 25. Rd1 {[%emt 0:03:02]} Qe3 {[%emt 0:00:50]} 26. Rdf1 {[%emt 0:05:24]} g5 {[%emt 0:01:01]} 27. Nb1 {[%emt 0:01:04]} Qa7 {[%emt 0:01:09]} 28. Kh2 {[%emt 0:00:28]} g4 {[%emt 0:00:27]} 29. Rxf5 {[%emt 0:00:44]} gxh3 {[%emt 0:00:19]} 30. gxh3 {[%emt 0:01:10]} Qd4 {[%emt 0:00:25]} 31. R5f4 {[%emt 0:03:53]} Qe5 {[%emt 0:01:33]} 32. Qb4 {[%emt 0:05:06]} Rhg8 {[%emt 0:00:48]} 33. R1f2 {[%emt 0:03:47]} Rd1 {[%emt 0:00:34]} 0-1

[Event "Liberia Championship 2023"]
[Site "Monrovia"]
[Date "2024.01.16"]
[Round "1.7"]
[White "Miller Moore"]
[Black "James, Tondo"]
[Result "0-1"]
[ECO "C84"]
[WhiteElo "1677"]
[BlackElo "1837"]
[Annotator "NA COMBH"]
[PlyCount "51"]
[EventDate "2024.01.16"]
[EventType "swiss"]
[EventCountry "LBR"]
[SourceTitle "playchess.com"]
[Source "ChessBase"]
[SourceQuality "1"]
[TimeControl "40/5400+30:1800+30"]

1. e4 {[%emt 0:18:27]} e5 {[%emt 0:00:03]} 2. Nf3 {[%emt 0:00:12]} Nc6 {[%emt 0:00:03]} 3. Bb5 {[%emt 0:00:14]} a6 {[%emt 0:00:02]} 4. Ba4 {[%emt 0:00:13]} Nf6 {[%emt 0:00:03]} 5. O-O {[%emt 0:00:36]} Be7 {[%emt 0:00:03]} 6. Nc3 {[%emt 0:00:18]} b5 {[%emt 0:00:17]} 7. Bb3 {[%emt 1:14:00]} d6 {[%emt 1:33:29]} 8. h3 {[%emt 0:00:00]} Na5 {[%emt 0:00:00]} 9. d4 {[%emt 0:00:00]} exd4 {[%emt 0:00:00]} 10. Nxd4 {[%emt 0:00:00]} c5 {[%emt 0:00:00]} 11. Ndxb5 {[%emt 0:00:00]} axb5 {[%emt 0:00:00]} 12. Nxb5 {[%emt 0:00:00]} Nxb3 {[%emt 0:00:00]} 13. cxb3 {[%emt 0:00:00]} Ba6 {[%emt 0:00:00]} 14. Qe2 {[%emt 0:00:00]} Qb8 {[%emt 0:00:00]} 15. a4 {[%emt 0:00:00]} Bxb5 {[%emt 0:00:00]} 16. axb5 {[%emt 0:00:00]} Rxa1 {[%emt 0:00:00]} 17. f4 {[%emt 0:00:00]} O-O {[%emt 0:00:00]} 18. Kh2 {[%emt 0:00:00]} Qb7 {[%emt 0:00:00]} 19. e5 {[%emt 0:00:00]} Qe4 {[%emt 0:00:00]} 20. Qd2 {[%emt 0:00:00]} Nd5 {[%emt 0:00:00]} 21. Rd1 {[%emt 0:00:00]} Qxf4+ {[%emt 0:00:00]} 22. Qxf4 {[%emt 0:00:00]} Nxf4 {[%emt 0:00:00]} 23. exd6 {[%emt 0:00:00]} Bxd6 {[%emt 0:00:00]} 24. Rxd6 {[%emt 0:00:00]} Rxc1 {[%emt 0:00:00]} 25. b6 {[%emt 0:00:00]} Rc2 {[%emt 0:00:00]} 26. Kg3 {[%emt 0:00:00]} 0-1

[Event "Liberia Championship 2023"]
[Site "Monrovia"]
[Date "2024.01.16"]
[Round "1.8"]
[White "Daniel Kolliemelen"]
[Black "Rudolph Edwards"]
[Result "1-0"]
[ECO "D00"]
[WhiteElo "1809"]
[BlackElo "1630"]
[Annotator "NA COMBH"]
[PlyCount "128"]
[EventDate "2024.01.16"]
[EventType "swiss"]
[EventCountry "LBR"]
[SourceTitle "playchess.com"]
[Source "ChessBase"]
[SourceQuality "1"]
[TimeControl "40/5400+30:1800+30"]

1. d4 {[%emt 0:00:23]} d5 {[%emt 0:00:55]} 2. f4 {[%emt 0:00:36]} Nf6 {[%emt 0:01:05]} 3. e3 {[%emt 0:00:42]} Bf5 {[%emt 0:00:40]} 4. Bd3 {[%emt 0:00:16]} Bxd3 {[%emt 0:01:57]} 5. Qxd3 {[%emt 0:00:31]} e6 {[%emt 0:00:25]} 6. Qb5+ {[%emt 0:00:57]} Nbd7 {[%emt 0:01:27]} 7. Qxb7 {[%emt 0:00:27]} Bd6 {[%emt 0:00:22]} 8. Nf3 {[%emt 0:04:03]} O-O {[%emt 0:00:56]} 9. Qa6 {[%emt 0:00:56]} Nb6 {[%emt 0:02:35]} 10. Qd3 {[%emt 0:01:00]} Rb8 {[%emt 0:01:03]} 11. Nbd2 {[%emt 0:00:41]} c5 {[%emt 0:00:15]} 12. c3 {[%emt 0:02:44]} Qc7 {[%emt 0:04:21]} 13. g3 {[%emt 0:00:58]} c4 {[%emt 0:04:00]} 14. Qc2 {[%emt 0:01:16]} Nc8 {[%emt 0:00:46]} 15. e4 {[%emt 0:01:43]} dxe4 {[%emt 0:10:44]} 16. Nxe4 {[%emt 0:00:42]} Be7 {[%emt 0:00:17]} 17. O-O {[%emt 0:02:36]} h6 {[%emt 0:02:24]} 18. Qe2 {[%emt 0:00:43]} Nxe4 {[%emt 0:01:40]} 19. Qxe4 {[%emt 0:00:33]} Nd6 {[%emt 0:00:34]} 20. Qe2 {[%emt 0:01:57]} Qc6 {[%emt 0:03:04]} 21. Re1 {[%emt 0:01:27]} Rfc8 {[%emt 0:00:51]} 22. Ne5 {[%emt 0:03:52]} Qd5 {[%emt 0:06:26]} 23. Qc2 {[%emt 0:05:09]} Nf5 {[%emt 0:02:36]} 24. Ng4 {[%emt 0:03:00]} Qf3 {[%emt 0:04:07]} 25. Qe2 {[%emt 0:00:49]} Qd5 {[%emt 0:00:38]} 26. Ne3 {[%emt 0:06:51]} Qb5 {[%emt 0:02:45]} 27. Nd1 {[%emt 0:59:08]} Nd6 {[%emt 0:47:07]} 28. Be3 {[%emt 0:00:00]} Qf5 {[%emt 0:00:00]} 29. Rc1 {[%emt 0:00:00]} Rb5 {[%emt 0:00:00]} 30. Rc2 {[%emt 0:00:00]} Qg6 {[%emt 0:00:00]} 31. Bc1 {[%emt 0:00:00]} Rh5 {[%emt 0:00:00]} 32. Nf2 {[%emt 0:02:30]} Bh4 {[%emt 0:02:30]} 33. Qg4 {[%emt 0:00:00]} Qxc2 {[%emt 0:00:00]} 34. Qxh5 {[%emt 0:00:00]} Bd8 {[%emt 0:00:00]} 35. Qe2 {[%emt 0:00:00]} Qg6 {[%emt 0:00:00]} 36. Kh1 {[%emt 0:00:00]} Rb8 {[%emt 0:00:00]} 37. Ne4 {[%emt 0:00:00]} Nxe4 {[%emt 0:00:00]} 38. Qxe4 {[%emt 0:00:00]} Qh5 {[%emt 0:00:00]} 39. Qc6 {[%emt 0:00:00]} Qb5 {[%emt 0:00:00]} 40. Qxb5 {[%emt 0:00:00]} Rxb5 {[%emt 0:00:00]} 41. Re5 {[%emt 0:17:07]} Rxe5 {[%emt 0:14:03]} 42. fxe5 {[%emt 0:17:53]} Kf8 {[%emt 0:20:57]} 43. b3 {[%emt 0:00:00]} cxb3 {[%emt 0:00:00]} 44. axb3 {[%emt 0:00:00]} Ke8 {[%emt 0:00:00]} 45. Kg2 {[%emt 0:00:00]} Kd7 {[%emt 0:00:00]} 46. Kf3 {[%emt 0:00:00]} Kc6 {[%emt 0:00:00]} 47. Ke4 {[%emt 0:00:00]} a5 {[%emt 0:00:00]} 48. c4 {[%emt 0:00:00]} h5 {[%emt 0:00:00]} 49. d5+ {[%emt 0:00:00]} exd5+ {[%emt 0:00:00]} 50. cxd5+ {[%emt 0:00:00]} Kd7 {[%emt 0:00:00]} 51. h3 {[%emt 0:00:00]} g6 {[%emt 0:00:00]} 52. g4 {[%emt 0:05:00]} hxg4 {[%emt 0:05:00]} 53. hxg4 {[%emt 0:00:00]} Bh4 {[%emt 0:00:00]} 54. Bd2 {[%emt 0:00:00]} Bd8 {[%emt 0:00:00]} 55. Bc3 {[%emt 0:00:00]} Bb6 {[%emt 0:00:00]} 56. Kf3 {[%emt 0:00:00]} Bd8 {[%emt 0:00:00]} 57. Ke4 {[%emt 0:00:00]} Bc7 {[%emt 0:00:00]} 58. Kd3 {[%emt 0:00:00]} Bb8 {[%emt 0:00:00]} 59. Kc4 {[%emt 0:00:00]} Bc7 {[%emt 0:00:00]} 60. Kb5 {[%emt 0:00:00]} g5 {[%emt 0:00:00]} 61. d6 {[%emt 0:00:00]} Bb8 {[%emt 0:00:00]} 62. Bxa5 {[%emt 0:00:00]} f6 {[%emt 0:00:00]} 63. exf6 {[%emt 0:00:00]} Bxd6 {[%emt 0:00:00]} 64. Bb4 {[%emt 0:00:00]} Ke8 {[%emt 0:00:00]} 1-0